[Event "*** Titled Tuesday 3|2 Blitz (Late)"]
[Site "Chess.com"]
[Date "2017.01.03"]
[Round "2"]
[White "RobertoJBM"]
[Black "boredoldman"]
[Result "0-1"]
[WhiteElo "2467"]
[BlackElo "2509"]
[TimeControl "180+2"]
[EndTime "17:15:30 PST"]
[Termination "boredoldman won by resignation"]

1. d4 {[%clk 0:03:02]} 1... Nf6 {[%clk 0:03:00.4]} 2. Nf3 {[%clk 0:03:03.2]}
2... c5 {[%clk 0:03:01.8]} 3. e3 {[%clk 0:03:05.1]} 3... e6 {[%clk 0:03:03]} 4.
c3 {[%clk 0:03:06]} 4... Nc6 {[%clk 0:03:03.7]} 5. Nbd2 {[%clk 0:03:07.4]} 5...
d5 {[%clk 0:03:04.5]} 6. Bd3 {[%clk 0:03:08.4]} 6... Bd6 {[%clk 0:03:02.2]} 7.
O-O {[%clk 0:03:09.4]} 7... O-O {[%clk 0:03:02.9]} 8. dxc5 {[%clk 0:03:10.4]}
8... Bxc5 {[%clk 0:03:04.8]} 9. e4 {[%clk 0:03:11.8]} 9... Qc7 {[%clk
0:02:41.2]} 10. exd5 {[%clk 0:03:11]} 10... exd5 {[%clk 0:02:40.2]} 11. Nb3
{[%clk 0:03:12]} 11... Bb6 {[%clk 0:02:41.7]} 12. Bg5 {[%clk 0:03:12.6]} 12...
Ne4 {[%clk 0:02:41]} 13. Bh4 {[%clk 0:03:10]} 13... Bg4 {[%clk 0:02:39.7]} 14.
Be2 {[%clk 0:03:11]} 14... Qd6 {[%clk 0:02:36.8]} 15. Nfd4 {[%clk 0:03:11.3]}
15... Bxe2 {[%clk 0:02:35.2]} 16. Nxe2 {[%clk 0:03:13.2]} 16... f5 {[%clk
0:02:35.1]} 17. Ned4 {[%clk 0:03:11.6]} 17... g5 {[%clk 0:02:33.1]} 18. f3
{[%clk 0:03:12.4]} 18... gxh4 {[%clk 0:02:30.9]} 19. fxe4 {[%clk 0:03:13.4]}
19... Nxd4 {[%clk 0:02:31.3]} 20. Nxd4 {[%clk 0:03:10.9]} 20... dxe4 {[%clk
0:02:31.2]} 21. Kh1 {[%clk 0:03:11.6]} 21... Bc7 {[%clk 0:02:25.5]} 22. g3
{[%clk 0:03:04.8]} 22... hxg3 {[%clk 0:02:27.4]} 23. hxg3 {[%clk 0:03:06.2]}
23... Qh6+ {[%clk 0:02:23.8]} 24. Kg2 {[%clk 0:03:06.6]} 24... f4 {[%clk
0:02:25.1]} 25. Qg4+ {[%clk 0:02:55.3]} 25... Kh8 {[%clk 0:02:18]} 26. Rh1
{[%clk 0:02:55.5]} 26... f3+ {[%clk 0:01:56.5]} 27. Kf2 {[%clk 0:02:56.4]} 27...
Qd2+ {[%clk 0:01:55.7]} 0-1

[Event "*** Titled Tuesday 3|2 Blitz (Late)"]
[Site "Chess.com"]
[Date "2017.01.03"]
[Round "2"]
[White "Ez_Chess2016"]
[Black "AungTZ"]
[Result "0-1"]
[WhiteElo "1980"]
[BlackElo "2137"]
[TimeControl "180+2"]
[EndTime "17:16:00 PST"]
[Termination "AungTZ won by resignation"]

1. e4 {[%clk 0:03:01.9]} 1... c5 {[%clk 0:03:00.4]} 2. b3 {[%clk 0:03:01.5]}
2... Nc6 {[%clk 0:03:00.8]} 3. Bb2 {[%clk 0:03:02.1]} 3... e5 {[%clk 0:03:01.8]}
4. Bc4 {[%clk 0:02:59.9]} 4... d6 {[%clk 0:03:01.3]} 5. Ne2 {[%clk 0:02:59.6]}
5... Be7 {[%clk 0:02:59.5]} 6. O-O {[%clk 0:02:59.6]} 6... Nf6 {[%clk 0:03:00]}
7. Nbc3 {[%clk 0:03:00.5]} 7... Nd4 {[%clk 0:02:59.9]} 8. d3 {[%clk 0:02:54.6]}
8... O-O {[%clk 0:02:59.8]} 9. f4 {[%clk 0:02:55.2]} 9... Bg4 {[%clk 0:02:50.7]}
10. h3 {[%clk 0:02:50.8]} 10... Bxe2 {[%clk 0:02:50.1]} 11. Nxe2 {[%clk
0:02:51.6]} 11... a6 {[%clk 0:02:42.3]} 12. a4 {[%clk 0:02:42.4]} 12... Nd7
{[%clk 0:02:18]} 13. Nxd4 {[%clk 0:02:12.6]} 13... cxd4 {[%clk 0:02:17.5]} 14.
c3 {[%clk 0:02:09.5]} 14... dxc3 {[%clk 0:02:09.6]} 15. Bxc3 {[%clk 0:02:09.1]}
15... Bf6 {[%clk 0:02:10.8]} 16. f5 {[%clk 0:02:00.5]} 16... Rc8 {[%clk
0:02:04.3]} 17. Bb4 {[%clk 0:01:48.2]} 17... Qb6+ {[%clk 0:01:40.2]} 18. Kh1
{[%clk 0:01:48.5]} 18... Qxb4 {[%clk 0:01:41.2]} 0-1

[Event "*** Titled Tuesday 3|2 Blitz (Late)"]
[Site "Chess.com"]
[Date "2017.01.03"]
[Round "2"]
[White "LazarusIcarus"]
[Black "1random"]
[Result "1-0"]
[WhiteElo "2124"]
[BlackElo "2022"]
[TimeControl "180+2"]
[EndTime "17:16:40 PST"]
[Termination "LazarusIcarus won by checkmate"]

1. e4 {[%clk 0:02:55.4]} 1... d5 {[%clk 0:02:59.8]} 2. exd5 {[%clk 0:02:56.2]}
2... Nf6 {[%clk 0:03:01.4]} 3. d4 {[%clk 0:02:55.8]} 3... Bg4 {[%clk 0:03:02.4]}
4. Be2 {[%clk 0:02:56.6]} 4... Bxe2 {[%clk 0:03:01.9]} 5. Qxe2 {[%clk
0:02:58.5]} 5... Qxd5 {[%clk 0:03:02]} 6. Nf3 {[%clk 0:03:00.1]} 6... Nc6 {[%clk
0:03:02.1]} 7. Be3 {[%clk 0:03:00.1]} 7... O-O-O {[%clk 0:02:59.3]} 8. c4 {[%clk
0:03:00.4]} 8... Qf5 {[%clk 0:02:59.8]} 9. Nc3 {[%clk 0:03:00.8]} 9... e6 {[%clk
0:02:57.4]} 10. O-O {[%clk 0:02:57.1]} 10... Bd6 {[%clk 0:02:58.2]} 11. Rfd1
{[%clk 0:02:54.7]} 11... h6 {[%clk 0:02:58.2]} 12. d5 {[%clk 0:02:55.1]} 12...
Ne5 {[%clk 0:02:52.2]} 13. Nd4 {[%clk 0:02:53]} 13... Qg6 {[%clk 0:02:41.2]} 14.
Ndb5 {[%clk 0:02:50.1]} 14... a6 {[%clk 0:02:21.9]} 15. Na7+ {[%clk 0:02:42.6]}
15... Kb8 {[%clk 0:02:22.4]} 16. c5 {[%clk 0:02:43.9]} 16... exd5 {[%clk
0:00:45.7]} 17. cxd6 {[%clk 0:02:42.6]} 17... Rxd6 {[%clk 0:00:45.5]} 18. Bf4
{[%clk 0:02:37.2]} 18... Qb1 {[%clk 0:00:40.1]} 19. Raxb1 {[%clk 0:02:35.4]}
19... Nd3 {[%clk 0:00:40.6]} 20. Qxd3 {[%clk 0:02:36]} 20... Re6 {[%clk
0:00:41.9]} 21. Nxd5 {[%clk 0:02:34.8]} 21... Re1+ {[%clk 0:00:43.8]} 22. Rxe1
{[%clk 0:02:35.5]} 22... Ne4 {[%clk 0:00:40.8]} 23. Qxe4 {[%clk 0:02:35.3]}
23... h5 {[%clk 0:00:41.2]} 24. Bxc7+ {[%clk 0:02:35.7]} 24... Ka8 {[%clk
0:00:42.2]} 25. Qe8+ {[%clk 0:02:34.6]} 25... Kxa7 {[%clk 0:00:43.1]} 26. Bb6#
{[%clk 0:02:35.4]} 1-0

[Event "*** Titled Tuesday 3|2 Blitz (Late)"]
[Site "Chess.com"]
[Date "2017.01.03"]
[Round "2"]
[White "FLchessplayer"]
[Black "SidArun"]
[Result "1-0"]
[WhiteElo "2090"]
[BlackElo "2044"]
[TimeControl "180+2"]
[EndTime "17:16:52 PST"]
[Termination "FLchessplayer won by resignation"]

1. e4 {[%clk 0:03:02]} 1... c6 {[%clk 0:03:00.8]} 2. d4 {[%clk 0:03:02.1]} 2...
d5 {[%clk 0:03:02.7]} 3. exd5 {[%clk 0:03:03.5]} 3... cxd5 {[%clk 0:03:03.7]} 4.
Bd3 {[%clk 0:03:04.7]} 4... Nc6 {[%clk 0:03:04.4]} 5. c3 {[%clk 0:03:06]} 5...
Qc7 {[%clk 0:03:04.8]} 6. h3 {[%clk 0:03:04.5]} 6... g6 {[%clk 0:03:04.6]} 7.
Be3 {[%clk 0:03:03.5]} 7... Bf5 {[%clk 0:03:03]} 8. Bxf5 {[%clk 0:03:02.3]} 8...
gxf5 {[%clk 0:03:00.8]} 9. Nf3 {[%clk 0:03:02.5]} 9... e6 {[%clk 0:03:01.6]} 10.
Qc1 {[%clk 0:03:01]} 10... Bd6 {[%clk 0:03:01.6]} 11. a4 {[%clk 0:03:00.2]}
11... Nge7 {[%clk 0:03:00.1]} 12. Na3 {[%clk 0:03:00.9]} 12... Na5 {[%clk
0:03:00.3]} 13. Nb5 {[%clk 0:03:00.1]} 13... Qd7 {[%clk 0:02:59.7]} 14. Nxd6+
{[%clk 0:03:01]} 14... Qxd6 {[%clk 0:03:01.1]} 15. Nd2 {[%clk 0:03:02]} 15...
Rc8 {[%clk 0:02:58.6]} 16. g3 {[%clk 0:02:59.7]} 16... Ng6 {[%clk 0:02:57.6]}
17. Bg5 {[%clk 0:02:58.8]} 17... Nc4 {[%clk 0:02:57.6]} 18. Nxc4 {[%clk
0:02:58.9]} 18... Rxc4 {[%clk 0:02:57.8]} 19. b3 {[%clk 0:02:53.5]} 19... Rc6
{[%clk 0:02:56]} 20. Qd2 {[%clk 0:02:54.5]} 20... Kd7 {[%clk 0:02:56.8]} 21. h4
{[%clk 0:02:53.3]} 21... h5 {[%clk 0:02:57.2]} 22. Ke2 {[%clk 0:02:46.6]} 22...
Rhc8 {[%clk 0:02:56.4]} 23. Rhc1 {[%clk 0:02:46.4]} 23... e5 {[%clk 0:02:49.5]}
24. dxe5 {[%clk 0:02:43.6]} 24... Qxe5+ {[%clk 0:02:46.7]} 25. Kf1 {[%clk
0:02:42.9]} 25... Rxc3 {[%clk 0:02:37.5]} 26. Re1 {[%clk 0:02:42.6]} 26... Rc2
{[%clk 0:02:22]} 27. Qb4 {[%clk 0:02:25.4]} 27... Qc7 {[%clk 0:01:45.8]} 28.
Rad1 {[%clk 0:02:24.4]} 28... Qc6 {[%clk 0:01:42]} 29. Re7+ {[%clk 0:02:17.5]}
29... Kd8 {[%clk 0:01:34.8]} 30. Rxf7+ {[%clk 0:02:14.5]} 30... Ke8 {[%clk
0:01:35.3]} 31. Re7+ {[%clk 0:02:15.3]} 31... Kf8 {[%clk 0:01:35.1]} 32. Rc7+
{[%clk 0:02:10.3]} 1-0

[Event "*** Titled Tuesday 3|2 Blitz (Late)"]
[Site "Chess.com"]
[Date "2017.01.03"]
[Round "2"]
[White "LawrenceTrent"]
[Black "Rating-Schmating"]
[Result "0-1"]
[WhiteElo "2406"]
[BlackElo "2278"]
[TimeControl "180+2"]
[EndTime "17:18:03 PST"]
[Termination "Rating-Schmating won by resignation"]

1. e4 {[%clk 0:03:02]} 1... e6 {[%clk 0:03:00.9]} 2. d4 {[%clk 0:03:02.9]} 2...
d5 {[%clk 0:02:59.2]} 3. Nd2 {[%clk 0:03:04.8]} 3... a6 {[%clk 0:02:59.5]} 4.
Ngf3 {[%clk 0:03:05.6]} 4... Nf6 {[%clk 0:03:00]} 5. e5 {[%clk 0:03:06.8]} 5...
Nfd7 {[%clk 0:03:01]} 6. Bd3 {[%clk 0:03:08]} 6... c5 {[%clk 0:02:59.3]} 7. c3
{[%clk 0:03:09]} 7... Nc6 {[%clk 0:03:00.3]} 8. O-O {[%clk 0:03:09.4]} 8... g5
{[%clk 0:03:01.5]} 9. dxc5 {[%clk 0:03:10.5]} 9... g4 {[%clk 0:03:01.8]} 10. Nd4
{[%clk 0:03:11.7]} 10... Ncxe5 {[%clk 0:03:02.6]} 11. N2b3 {[%clk 0:03:11.1]}
11... Nxd3 {[%clk 0:03:02.9]} 12. Qxd3 {[%clk 0:03:11.9]} 12... Nxc5 {[%clk
0:03:04.3]} 13. Nxc5 {[%clk 0:03:12.2]} 13... Bxc5 {[%clk 0:03:06.2]} 14. Be3
{[%clk 0:03:11.6]} 14... Bd6 {[%clk 0:03:06.5]} 15. Rae1 {[%clk 0:03:10.8]}
15... Bd7 {[%clk 0:03:03.1]} 16. Nf5 {[%clk 0:03:10.1]} 16... Bb5 {[%clk
0:02:48.7]} 17. Qd4 {[%clk 0:03:02.8]} 17... Rg8 {[%clk 0:02:40.9]} 18. Bf4
{[%clk 0:02:49.7]} 18... Bxf4 {[%clk 0:02:38.7]} 19. Qxf4 {[%clk 0:02:50]} 19...
Bxf1 {[%clk 0:02:39.9]} 20. Nd6+ {[%clk 0:02:46.9]} 20... Kd7 {[%clk 0:02:41.1]}
21. Nxf7 {[%clk 0:02:48.2]} 21... Qe7 {[%clk 0:02:36.8]} 22. Ne5+ {[%clk
0:02:45.2]} 22... Kc7 {[%clk 0:02:27.8]} 23. Kxf1 {[%clk 0:02:34.5]} 23... Raf8
{[%clk 0:02:22.7]} 24. Qg3 {[%clk 0:02:34.6]} 24... Qd6 {[%clk 0:02:19.8]} 25.
c4 {[%clk 0:02:31.5]} 25... Rf5 {[%clk 0:02:15.4]} 26. c5 {[%clk 0:02:22]} 26...
Qxc5 {[%clk 0:02:08]} 27. Nd3+ {[%clk 0:01:50.1]} 27... Qd6 {[%clk 0:02:08.1]}
28. Rc1+ {[%clk 0:01:51.4]} 28... Kd7 {[%clk 0:02:06.8]} 29. Ne5+ {[%clk
0:01:47]} 29... Qxe5 {[%clk 0:02:02.8]} 30. Qh4 {[%clk 0:01:41.8]} 30... Qf6
{[%clk 0:01:56.7]} 31. Qg3 {[%clk 0:01:36.2]} 31... e5 {[%clk 0:01:55.2]} 32.
Qb3 {[%clk 0:01:29.3]} 32... Rxf2+ {[%clk 0:01:53]} 33. Kg1 {[%clk 0:01:18.1]}
33... Rxg2+ {[%clk 0:01:44]} 34. Kh1 {[%clk 0:01:12.9]} 34... Rxh2+ {[%clk
0:01:36.5]} 35. Kxh2 {[%clk 0:01:14.3]} 35... Qf2+ {[%clk 0:01:35.6]} 36. Kh1
{[%clk 0:01:14.4]} 36... Qf3+ {[%clk 0:01:37]} 0-1

[Event "*** Titled Tuesday 3|2 Blitz (Late)"]
[Site "Chess.com"]
[Date "2017.01.03"]
[Round "2"]
[White "Tonychess32"]
[Black "MrReinberg"]
[Result "1-0"]
[WhiteElo "2401"]
[BlackElo "2165"]
[TimeControl "180+2"]
[EndTime "17:18:11 PST"]
[Termination "Tonychess32 won by checkmate"]

1. e4 {[%clk 0:03:01.9]} 1... c5 {[%clk 0:01:59.6]} 2. Nf3 {[%clk 0:02:55.9]}
2... g6 {[%clk 0:01:59.7]} 3. c3 {[%clk 0:02:57]} 3... Bg7 {[%clk 0:02:00.3]} 4.
d4 {[%clk 0:02:58.1]} 4... cxd4 {[%clk 0:02:01.7]} 5. cxd4 {[%clk 0:02:58.5]}
5... d5 {[%clk 0:02:02.9]} 6. e5 {[%clk 0:02:57.8]} 6... Nc6 {[%clk 0:02:02.9]}
7. Be2 {[%clk 0:02:58]} 7... Nh6 {[%clk 0:02:03.5]} 8. O-O {[%clk 0:02:57.5]}
8... O-O {[%clk 0:02:04.1]} 9. Be3 {[%clk 0:02:57.6]} 9... f6 {[%clk 0:02:04.2]}
10. exf6 {[%clk 0:02:52.1]} 10... exf6 {[%clk 0:02:05.1]} 11. Nc3 {[%clk
0:02:52.5]} 11... Nf5 {[%clk 0:02:04.6]} 12. Qb3 {[%clk 0:02:50]} 12... Nfe7
{[%clk 0:01:41.7]} 13. Rfe1 {[%clk 0:02:47.2]} 13... Na5 {[%clk 0:01:39]} 14.
Qa3 {[%clk 0:02:43.4]} 14... Nc4 {[%clk 0:01:34.2]} 15. Bxc4 {[%clk 0:02:44]}
15... dxc4 {[%clk 0:01:36.1]} 16. Bf4 {[%clk 0:02:42.7]} 16... Nd5 {[%clk
0:01:34.1]} 17. Nxd5 {[%clk 0:02:42.5]} 17... Qxd5 {[%clk 0:01:35.8]} 18. Re7
{[%clk 0:02:33.6]} 18... Bg4 {[%clk 0:01:31.7]} 19. Rae1 {[%clk 0:02:34.1]}
19... Bxf3 {[%clk 0:01:25.3]} 20. gxf3 {[%clk 0:02:36]} 20... Qxd4 {[%clk
0:01:19]} 21. R1e4 {[%clk 0:02:21.9]} 21... Qd5 {[%clk 0:01:13.1]} 22. Rc7
{[%clk 0:02:16.8]} 22... Rf7 {[%clk 0:00:56.5]} 23. Rexc4 {[%clk 0:02:13.3]}
23... Re8 {[%clk 0:00:44.5]} 24. Kg2 {[%clk 0:02:11.6]} 24... g5 {[%clk
0:00:44.2]} 25. Bd6 {[%clk 0:02:05.1]} 25... Bf8 {[%clk 0:00:40.3]} 26. Bxf8
{[%clk 0:02:03.2]} 26... Rexf8 {[%clk 0:00:40.4]} 27. Qxa7 {[%clk 0:01:59.9]}
27... Rxc7 {[%clk 0:00:37.7]} 28. Rxc7 {[%clk 0:02:01.8]} 28... g4 {[%clk
0:00:36.5]} 29. Qxb7 {[%clk 0:01:55.4]} 29... gxf3+ {[%clk 0:00:37.4]} 30. Kg3
{[%clk 0:01:55.1]} 30... Qg5+ {[%clk 0:00:37.6]} 31. Kxf3 {[%clk 0:01:55.2]}
31... Qf5+ {[%clk 0:00:37]} 32. Kg3 {[%clk 0:01:51.5]} 32... Qg5+ {[%clk
0:00:37.2]} 33. Kf3 {[%clk 0:01:52.2]} 33... Qf5+ {[%clk 0:00:38.2]} 34. Ke2
{[%clk 0:01:53.3]} 34... Re8+ {[%clk 0:00:33.4]} 35. Re7 {[%clk 0:01:54.4]}
35... Qf4 {[%clk 0:00:33.2]} 36. Rxe8# {[%clk 0:01:52.1]} 1-0

[Event "*** Titled Tuesday 3|2 Blitz (Late)"]
[Site "Chess.com"]
[Date "2017.01.03"]
[Round "2"]
[White "TrickyTrapChess"]
[Black "beastfromweast"]
[Result "1-0"]
[WhiteElo "2144"]
[BlackElo "2285"]
[TimeControl "180+2"]
[EndTime "17:18:11 PST"]
[Termination "TrickyTrapChess won by resignation"]

1. d4 {[%clk 0:03:02]} 1... d5 {[%clk 0:03:00.5]} 2. Bg5 {[%clk 0:03:02.3]} 2...
h6 {[%clk 0:03:00.2]} 3. Bh4 {[%clk 0:03:03.1]} 3... Nd7 {[%clk 0:03:01.2]} 4.
e3 {[%clk 0:03:03.2]} 4... Ngf6 {[%clk 0:03:02.1]} 5. c4 {[%clk 0:03:04]} 5...
e6 {[%clk 0:03:03.3]} 6. Nc3 {[%clk 0:03:05.3]} 6... Be7 {[%clk 0:03:03.3]} 7.
cxd5 {[%clk 0:03:06]} 7... exd5 {[%clk 0:03:04.3]} 8. Bd3 {[%clk 0:03:07.5]}
8... c6 {[%clk 0:03:05.5]} 9. Nge2 {[%clk 0:03:08.9]} 9... O-O {[%clk
0:03:06.4]} 10. O-O {[%clk 0:03:10.2]} 10... Re8 {[%clk 0:03:07.4]} 11. Rc1
{[%clk 0:03:09.7]} 11... Nf8 {[%clk 0:03:07.8]} 12. f3 {[%clk 0:03:07.1]} 12...
Be6 {[%clk 0:03:05.9]} 13. e4 {[%clk 0:03:07.3]} 13... dxe4 {[%clk 0:03:05.6]}
14. fxe4 {[%clk 0:03:09.2]} 14... Ng4 {[%clk 0:03:03.6]} 15. Bxe7 {[%clk
0:03:08.7]} 15... Qxe7 {[%clk 0:03:05.5]} 16. Qd2 {[%clk 0:03:06.7]} 16... Qd6
{[%clk 0:02:40.1]} 17. e5 {[%clk 0:02:57.5]} 17... Nxe5 {[%clk 0:02:30.5]} 18.
dxe5 {[%clk 0:02:24.4]} 18... Qxe5 {[%clk 0:02:30.8]} 19. Nf4 {[%clk 0:02:22.7]}
19... Rad8 {[%clk 0:02:27.7]} 20. Rce1 {[%clk 0:02:20.4]} 20... Qd4+ {[%clk
0:02:24.9]} 21. Kh1 {[%clk 0:02:17.8]} 21... Rd6 {[%clk 0:02:08.6]} 22. Ne4
{[%clk 0:02:11.3]} 22... Rd7 {[%clk 0:02:05.5]} 23. Qe3 {[%clk 0:01:48.1]} 23...
Qxb2 {[%clk 0:02:02.6]} 24. Nc5 {[%clk 0:01:46.5]} 24... Rde7 {[%clk 0:01:55.1]}
25. Nfxe6 {[%clk 0:01:44.9]} 25... Nxe6 {[%clk 0:01:55.3]} 26. Qe4 {[%clk
0:01:42.8]} 26... g6 {[%clk 0:01:20.4]} 27. Bc4 {[%clk 0:01:33.5]} 27... Nxc5
{[%clk 0:00:57.7]} 28. Qxg6+ {[%clk 0:01:31.7]} 28... Qg7 {[%clk 0:00:53.8]} 29.
Bxf7+ {[%clk 0:01:32.3]} 29... Kh8 {[%clk 0:00:39.7]} 30. Bxe8 {[%clk
0:01:31.7]} 1-0

[Event "*** Titled Tuesday 3|2 Blitz (Late)"]
[Site "Chess.com"]
[Date "2017.01.03"]
[Round "2"]
[White "Kanthecarowin"]
[Black "wonderfultime"]
[Result "1-0"]
[WhiteElo "2255"]
[BlackElo "2643"]
[TimeControl "180+2"]
[EndTime "17:18:29 PST"]
[Termination "Kanthecarowin won by resignation"]

1. d4 {[%clk 0:03:01.9]} 1... Nf6 {[%clk 0:02:59.1]} 2. c4 {[%clk 0:03:02.5]}
2... e6 {[%clk 0:03:00.1]} 3. Nc3 {[%clk 0:03:03.3]} 3... Bb4 {[%clk 0:03:00]}
4. Qc2 {[%clk 0:03:04.4]} 4... O-O {[%clk 0:03:00.4]} 5. e4 {[%clk 0:03:04.8]}
5... d6 {[%clk 0:02:57.2]} 6. Bd3 {[%clk 0:02:57]} 6... Nc6 {[%clk 0:02:56.3]}
7. Ne2 {[%clk 0:02:57.8]} 7... e5 {[%clk 0:02:56.4]} 8. O-O {[%clk 0:02:40.3]}
8... Nxd4 {[%clk 0:02:23.5]} 9. Nxd4 {[%clk 0:02:30.1]} 9... exd4 {[%clk
0:02:24.8]} 10. Nd5 {[%clk 0:02:29.9]} 10... Nxd5 {[%clk 0:02:20.1]} 11. cxd5
{[%clk 0:02:20.3]} 11... Bc5 {[%clk 0:02:19.5]} 12. f4 {[%clk 0:02:18.9]} 12...
Bb6 {[%clk 0:02:13.7]} 13. f5 {[%clk 0:02:16.8]} 13... Qf6 {[%clk 0:02:09.1]}
14. g4 {[%clk 0:02:15]} 14... Qh4 {[%clk 0:02:06.8]} 15. Qg2 {[%clk 0:02:07.7]}
15... Qd8 {[%clk 0:00:22]} 16. g5 {[%clk 0:02:05.8]} 16... f6 {[%clk 0:00:18.5]}
17. g6 {[%clk 0:02:03.6]} 17... h6 {[%clk 0:00:19]} 18. Qh3 {[%clk 0:02:02.3]}
18... Qe7 {[%clk 0:00:18.9]} 19. Kh1 {[%clk 0:01:56.9]} 19... Re8 {[%clk
0:00:16.5]} 20. Rg1 {[%clk 0:01:56.9]} 20... c6 {[%clk 0:00:12.5]} 21. Bxh6
{[%clk 0:01:57.1]} 21... gxh6 {[%clk 0:00:13.4]} 22. g7 {[%clk 0:01:57.7]} 22...
Kf7 {[%clk 0:00:08]} 23. Qh5+ {[%clk 0:01:52.9]} 23... Kg8 {[%clk 0:00:08.7]}
24. Qxh6 {[%clk 0:01:53.9]} 24... Bd7 {[%clk 0:00:08.7]} 25. Qh8+ {[%clk
0:01:28]} 25... Kf7 {[%clk 0:00:09.7]} 26. g8=Q+ {[%clk 0:01:28.5]} 1-0

[Event "*** Titled Tuesday 3|2 Blitz (Late)"]
[Site "Chess.com"]
[Date "2017.01.03"]
[Round "2"]
[White "StegariuVlad"]
[Black "Cruel_Yaro"]
[Result "0-1"]
[WhiteElo "2447"]
[BlackElo "2588"]
[TimeControl "180+2"]
[EndTime "17:18:42 PST"]
[Termination "Cruel_Yaro won by resignation"]

1. e4 {[%clk 0:03:02]} 1... c5 {[%clk 0:02:49.4]} 2. Nf3 {[%clk 0:03:02.6]} 2...
d6 {[%clk 0:02:50.6]} 3. g3 {[%clk 0:03:01.6]} 3... e5 {[%clk 0:02:43.7]} 4. Bg2
{[%clk 0:03:00.9]} 4... f5 {[%clk 0:02:43.1]} 5. d3 {[%clk 0:02:57.3]} 5... Nf6
{[%clk 0:02:42.1]} 6. O-O {[%clk 0:02:56.7]} 6... Nc6 {[%clk 0:02:38.7]} 7. exf5
{[%clk 0:02:52.7]} 7... Bxf5 {[%clk 0:02:39]} 8. Nh4 {[%clk 0:02:53.6]} 8... Bg4
{[%clk 0:02:38.9]} 9. f3 {[%clk 0:02:44.8]} 9... Be6 {[%clk 0:02:27.7]} 10. f4
{[%clk 0:02:44.6]} 10... Qd7 {[%clk 0:02:28.4]} 11. Nc3 {[%clk 0:02:41.5]} 11...
O-O-O {[%clk 0:02:24.5]} 12. fxe5 {[%clk 0:02:38.2]} 12... dxe5 {[%clk
0:02:23.8]} 13. Nf3 {[%clk 0:02:33.8]} 13... c4 {[%clk 0:02:21.5]} 14. Be3
{[%clk 0:02:27.6]} 14... cxd3 {[%clk 0:02:17.6]} 15. Rc1 {[%clk 0:02:26.7]}
15... e4 {[%clk 0:01:22]} 16. Ng5 {[%clk 0:02:26.1]} 16... d2 {[%clk 0:01:20.5]}
17. Qxd2 {[%clk 0:02:14.2]} 17... Qxd2 {[%clk 0:01:19.7]} 18. Bxd2 {[%clk
0:02:15.5]} 18... Bc5+ {[%clk 0:01:13.1]} 19. Kh1 {[%clk 0:02:16.8]} 19... Bc4
{[%clk 0:01:02.8]} 20. Ngxe4 {[%clk 0:02:17.6]} 20... Bxf1 {[%clk 0:00:58.3]}
21. Rxf1 {[%clk 0:02:18.5]} 21... Nxe4 {[%clk 0:00:58.3]} 22. Nxe4 {[%clk
0:02:19.5]} 22... Bd4 {[%clk 0:00:57.4]} 23. Bf4 {[%clk 0:02:20.1]} 23... Be5
{[%clk 0:00:55.8]} 24. Nc5 {[%clk 0:02:07]} 24... Bxf4 {[%clk 0:00:53.6]} 25.
gxf4 {[%clk 0:02:08.9]} 25... Rd2 {[%clk 0:00:47.9]} 26. Be4 {[%clk 0:02:09.3]}
26... g6 {[%clk 0:00:42.5]} 27. Bd3 {[%clk 0:02:07.9]} 27... Nb4 {[%clk
0:00:26]} 28. Ne4 {[%clk 0:02:07.3]} 28... Nxd3 {[%clk 0:00:23.9]} 29. Nxd2
{[%clk 0:02:06.6]} 29... Nxb2 {[%clk 0:00:24.9]} 30. f5 {[%clk 0:02:04]} 30...
gxf5 {[%clk 0:00:23.7]} 31. Rxf5 {[%clk 0:02:05.1]} 31... Rd8 {[%clk 0:00:24.9]}
32. Nb3 {[%clk 0:02:06.1]} 32... Na4 {[%clk 0:00:19.4]} 33. Rf7 {[%clk
0:02:06.5]} 33... Rd7 {[%clk 0:00:17.5]} 34. Rf3 {[%clk 0:02:07]} 34... b5
{[%clk 0:00:15.1]} 35. Kg2 {[%clk 0:02:07.1]} 35... Kc7 {[%clk 0:00:14.9]} 36.
h4 {[%clk 0:02:08]} 36... Kb6 {[%clk 0:00:11.4]} 37. Kg3 {[%clk 0:02:09.2]}
37... Rc7 {[%clk 0:00:12.2]} 38. Rf2 {[%clk 0:02:08]} 38... Nc3 {[%clk 0:00:12]}
39. Nc1 {[%clk 0:02:06.5]} 39... Ne4+ {[%clk 0:00:12.5]} 40. Kf3 {[%clk
0:02:07.8]} 40... Nxf2 {[%clk 0:00:13.8]} 41. Kxf2 {[%clk 0:02:09.4]} 41...
Rxc2+ {[%clk 0:00:15.2]} 0-1

[Event "*** Titled Tuesday 3|2 Blitz (Late)"]
[Site "Chess.com"]
[Date "2017.01.03"]
[Round "2"]
[White "iturrizaga"]
[Black "afgano29"]
[Result "1-0"]
[WhiteElo "2686"]
[BlackElo "2412"]
[TimeControl "180+2"]
[EndTime "17:18:58 PST"]
[Termination "iturrizaga won by resignation"]

1. Nf3 {[%clk 0:03:02]} 1... Nf6 {[%clk 0:03:00.8]} 2. c4 {[%clk 0:03:03.9]}
2... g6 {[%clk 0:03:01.5]} 3. Nc3 {[%clk 0:03:05.2]} 3... d5 {[%clk 0:03:02.6]}
4. cxd5 {[%clk 0:03:06.6]} 4... Nxd5 {[%clk 0:03:04.5]} 5. Qb3 {[%clk
0:03:05.3]} 5... Nxc3 {[%clk 0:02:54.5]} 6. Qxc3 {[%clk 0:03:06.4]} 6... f6
{[%clk 0:02:53.3]} 7. h4 {[%clk 0:03:06.8]} 7... h5 {[%clk 0:02:39.8]} 8. e4
{[%clk 0:03:04.6]} 8... e5 {[%clk 0:02:31.8]} 9. d4 {[%clk 0:03:02.2]} 9... exd4
{[%clk 0:02:27.6]} 10. Nxd4 {[%clk 0:03:02.8]} 10... c5 {[%clk 0:02:18.9]} 11.
Bb5+ {[%clk 0:02:56.1]} 11... Kf7 {[%clk 0:02:17.3]} 12. Nf3 {[%clk 0:02:54.5]}
12... Bg4 {[%clk 0:02:08.4]} 13. Be3 {[%clk 0:02:47.8]} 13... Qb6 {[%clk
0:02:02.3]} 14. Bc4+ {[%clk 0:02:44]} 14... Kg7 {[%clk 0:02:01.8]} 15. Nh2
{[%clk 0:02:20.8]} 15... Nc6 {[%clk 0:01:50.6]} 16. Nxg4 {[%clk 0:02:13.5]}
16... hxg4 {[%clk 0:01:52.5]} 17. O-O-O {[%clk 0:02:14.2]} 17... Ne5 {[%clk
0:01:37.6]} 18. Bf4 {[%clk 0:02:11.8]} 18... Bd6 {[%clk 0:01:21.6]} 19. Bxe5
{[%clk 0:02:11.8]} 19... Bxe5 {[%clk 0:01:22.5]} 20. Rd7+ {[%clk 0:02:11.7]}
20... Kh6 {[%clk 0:01:23.4]} 21. Qd2+ {[%clk 0:01:58.2]} 21... Kh5 {[%clk
0:01:24.2]} 22. Rd5 {[%clk 0:01:18.6]} 22... Qc7 {[%clk 0:01:11.2]} 23. f4
{[%clk 0:01:03.5]} 23... gxf3 {[%clk 0:01:10.6]} 24. Qf4 {[%clk 0:00:41.6]} 1-0